[Event "Live Chess"]
[Site "Chess.com"]
[Date "2024.06.01"]
[Round "-"]
[White "Nathaniel250"]
[Black "RuslanChessN"]
[Result "1-0"]
[WhiteElo "1452"]
[BlackElo "1971"]
[TimeControl "300"]
[EndTime "9:33:25 PDT"]
[Termination "Nathaniel250 won by resignation"]

1. c4 {[%clk 0:04:58.4]} 1... c6 {[%clk 0:04:58.3]} 2. e4 {[%clk 0:04:57.1]}
2... d5 {[%clk 0:04:57.2]} 3. cxd5 {[%clk 0:04:56.1]} 3... cxd5 {[%clk
0:04:56.3]} 4. exd5 {[%clk 0:04:56]} 4... Nf6 {[%clk 0:04:54.9]} 5. d4 {[%clk
0:04:51.8]} 5... Nxd5 {[%clk 0:04:53.3]} 6. Nc3 {[%clk 0:04:49.9]} 6... Nc6
{[%clk 0:04:44.5]} 7. Nf3 {[%clk 0:04:48.1]} 7... Bg4 {[%clk 0:04:41.7]} 8. Be2
{[%clk 0:04:36.5]} 8... e6 {[%clk 0:04:40.2]} 9. h3 {[%clk 0:04:34.7]} 9... Bh5
{[%clk 0:04:37.4]} 10. O-O {[%clk 0:04:31.2]} 10... Be7 {[%clk 0:04:32.7]} 11.
Nxd5 {[%clk 0:04:23.5]} 11... Qxd5 {[%clk 0:04:30.4]} 12. Be3 {[%clk 0:04:17]}
12... O-O {[%clk 0:04:28.4]} 13. a3 {[%clk 0:03:52.6]} 13... Bf6 {[%clk
0:04:26.3]} 14. Rc1 {[%clk 0:03:31.9]} 14... Rfd8 {[%clk 0:04:22.5]} 15. Rc5
{[%clk 0:03:29.5]} 15... Qd7 {[%clk 0:04:19.3]} 16. Rxh5 {[%clk 0:03:27.5]} 1-0

[Event "Live Chess"]
[Site "Chess.com"]
[Date "2024.06.01"]
[Round "-"]
[White "defenderalist"]
[Black "Mangoalo"]
[Result "1-0"]
[WhiteElo "1502"]
[BlackElo "988"]
[TimeControl "300"]
[EndTime "9:33:27 PDT"]
[Termination "defenderalist won by resignation"]

1. e4 {[%clk 0:04:56]} 1... c5 {[%clk 0:04:58.5]} 2. Nf3 {[%clk 0:04:54.6]} 2...
Nc6 {[%clk 0:04:58.4]} 3. d4 {[%clk 0:04:53.4]} 3... cxd4 {[%clk 0:04:58.3]} 4.
Nxd4 {[%clk 0:04:52.5]} 4... Nf6 {[%clk 0:04:55.9]} 5. Bc4 {[%clk 0:04:49.7]}
5... e5 {[%clk 0:04:55]} 6. Nf5 {[%clk 0:04:43.1]} 6... g6 {[%clk 0:04:50.1]} 7.
Nd6+ {[%clk 0:04:38.2]} 7... Bxd6 {[%clk 0:04:48.4]} 8. Qxd6 {[%clk 0:04:38.1]}
8... Qe7 {[%clk 0:04:44.3]} 9. Qxe7+ {[%clk 0:04:29.9]} 9... Nxe7 {[%clk
0:04:44.2]} 10. Bg5 {[%clk 0:04:28.9]} 10... Nxe4 {[%clk 0:04:38.3]} 11. Bxe7
{[%clk 0:04:18.1]} 11... Kxe7 {[%clk 0:04:35.1]} 12. O-O {[%clk 0:04:16.9]}
12... Re8 {[%clk 0:04:28.5]} 13. f3 {[%clk 0:04:15.8]} 13... Nd6 {[%clk
0:04:27.3]} 14. Bb3 {[%clk 0:04:08.8]} 14... b6 {[%clk 0:04:25.3]} 15. Nc3
{[%clk 0:04:04.5]} 15... Kf8 {[%clk 0:04:21.8]} 16. Nd5 {[%clk 0:04:02.1]} 16...
Bb7 {[%clk 0:04:18.8]} 17. Nc7 {[%clk 0:03:59.1]} 17... Rec8 {[%clk 0:04:12.1]}
1-0

[Event "Live Chess"]
[Site "Chess.com"]
[Date "2024.06.01"]
[Round "-"]
[White "MaximKhimchenko"]
[Black "JohanKjeldahl"]
[Result "1-0"]
[WhiteElo "1778"]
[BlackElo "1785"]
[TimeControl "300"]
[EndTime "9:33:49 PDT"]
[Termination "MaximKhimchenko won by resignation"]

1. e4 {[%clk 0:04:58.5]} 1... c5 {[%clk 0:04:58.1]} 2. Nf3 {[%clk 0:04:57.2]}
2... e6 {[%clk 0:04:56.4]} 3. g3 {[%clk 0:04:55.2]} 3... Nc6 {[%clk 0:04:54.2]}
4. Bg2 {[%clk 0:04:53.9]} 4... Qc7 {[%clk 0:04:52.6]} 5. O-O {[%clk 0:04:52.6]}
5... a6 {[%clk 0:04:48.8]} 6. c3 {[%clk 0:04:51.3]} 6... b5 {[%clk 0:04:47.5]}
7. Re1 {[%clk 0:04:49.5]} 7... Bb7 {[%clk 0:04:45.3]} 8. d4 {[%clk 0:04:48.2]}
8... cxd4 {[%clk 0:04:43.6]} 9. cxd4 {[%clk 0:04:48.1]} 9... Nf6 {[%clk
0:04:25.9]} 10. d5 {[%clk 0:04:45.1]} 10... Nd8 {[%clk 0:04:20]} 11. Nc3 {[%clk
0:04:43.4]} 11... b4 {[%clk 0:04:13.8]} 12. Na4 {[%clk 0:04:31.7]} 12... Be7
{[%clk 0:04:04.6]} 13. Bf4 {[%clk 0:04:27.6]} 13... d6 {[%clk 0:04:02.7]} 14.
Rc1 {[%clk 0:04:22]} 14... Qb8 {[%clk 0:03:48.2]} 15. dxe6 {[%clk 0:04:10.6]}
15... fxe6 {[%clk 0:03:41.3]} 16. e5 {[%clk 0:04:07.4]} 16... Nd5 {[%clk
0:03:36.1]} 17. exd6 {[%clk 0:04:04.9]} 17... Bxd6 {[%clk 0:03:31.4]} 18. Ne5
{[%clk 0:03:55.7]} 18... Nxf4 {[%clk 0:03:22.3]} 19. Bxb7 {[%clk 0:03:53.5]}
19... Nh3+ {[%clk 0:03:16.4]} 20. Kg2 {[%clk 0:03:50.8]} 20... Qxb7+ {[%clk
0:03:15]} 21. Kxh3 {[%clk 0:03:49.9]} 21... Bxe5 {[%clk 0:03:05.2]} 22. Rxe5
{[%clk 0:03:48.7]} 22... O-O {[%clk 0:03:01.2]} 23. f4 {[%clk 0:03:43.6]} 23...
Qf7 {[%clk 0:02:48.4]} 24. Qg4 {[%clk 0:03:37.5]} 24... Ra7 {[%clk 0:02:36.5]}
25. Nc5 {[%clk 0:03:30.8]} 25... Rc7 {[%clk 0:02:30.1]} 26. Rce1 {[%clk
0:03:22.2]} 26... Rc6 {[%clk 0:02:07.1]} 27. Nxe6 {[%clk 0:02:58.2]} 27... Nxe6
{[%clk 0:02:03.7]} 28. Rxe6 {[%clk 0:02:47.2]} 28... Rc2 {[%clk 0:02:02.3]} 29.
Re7 {[%clk 0:02:41.7]} 29... Qf6 {[%clk 0:02:01.3]} 30. R1e6 {[%clk 0:02:33.1]}
30... Qxb2 {[%clk 0:01:59.9]} 31. Re2 {[%clk 0:02:20.7]} 31... Rxe2 {[%clk
0:01:48.3]} 32. Rxe2 {[%clk 0:02:20.6]} 32... Qf6 {[%clk 0:01:43.1]} 33. Re6
{[%clk 0:02:11]} 33... Qb2 {[%clk 0:01:36.4]} 34. Rxa6 {[%clk 0:02:07]} 34...
Qc3 {[%clk 0:01:20.3]} 35. f5 {[%clk 0:02:03.9]} 35... h6 {[%clk 0:01:07.8]} 36.
Rxh6 {[%clk 0:01:54.8]} 36... Rxf5 {[%clk 0:00:59.7]} 37. Qxf5 {[%clk
0:01:46.9]} 37... gxh6 {[%clk 0:00:57.9]} 38. Qg6+ {[%clk 0:01:44.6]} 38... Kf8
{[%clk 0:00:56.2]} 39. Qxh6+ {[%clk 0:01:43.5]} 39... Ke7 {[%clk 0:00:55.3]} 40.
Qh4+ {[%clk 0:01:42.2]} 40... Kf7 {[%clk 0:00:52.5]} 41. Qf4+ {[%clk 0:01:40.9]}
41... Kg6 {[%clk 0:00:47.7]} 42. Qe4+ {[%clk 0:01:40.3]} 42... Kf7 {[%clk
0:00:45.4]} 43. Kg4 {[%clk 0:01:36.8]} 43... Qb2 {[%clk 0:00:36.5]} 44. Qf3+
{[%clk 0:01:31.5]} 44... Ke8 {[%clk 0:00:34]} 45. Qe3+ {[%clk 0:01:28]} 45...
Kf7 {[%clk 0:00:32]} 46. Kf5 {[%clk 0:01:21.2]} 46... Qf6+ {[%clk 0:00:29.3]}
47. Kg4 {[%clk 0:01:17.3]} 47... Qg6+ {[%clk 0:00:27.4]} 48. Qg5 {[%clk
0:01:16.2]} 48... Qb6 {[%clk 0:00:18.6]} 49. Qf5+ {[%clk 0:01:14.2]} 49... Ke7
{[%clk 0:00:16.1]} 50. Kg5 {[%clk 0:01:11.7]} 50... Kd8 {[%clk 0:00:12.8]} 51.
Qf6+ {[%clk 0:01:10.4]} 1-0

[Event "Live Chess"]
[Site "Chess.com"]
[Date "2024.06.01"]
[Round "-"]
[White "TheSmoulderingMaster"]
[Black "MiflockHydra"]
[Result "1-0"]
[WhiteElo "1742"]
[BlackElo "587"]
[TimeControl "300"]
[EndTime "9:34:02 PDT"]
[Termination "TheSmoulderingMaster won by checkmate"]

1. e4 {[%clk 0:04:57.9]} 1... c6 {[%clk 0:04:58.2]} 2. d4 {[%clk 0:04:56.8]}
2... d5 {[%clk 0:04:57.4]} 3. Nc3 {[%clk 0:04:56]} 3... dxe4 {[%clk 0:04:54.7]}
4. Nxe4 {[%clk 0:04:55.4]} 4... Bf5 {[%clk 0:04:53.5]} 5. Ng3 {[%clk 0:04:54]}
5... Bg6 {[%clk 0:04:48.6]} 6. Nh3 {[%clk 0:04:51.8]} 6... e5 {[%clk 0:04:41.1]}
7. Bd2 {[%clk 0:04:47]} 7... Qxd4 {[%clk 0:04:31.4]} 8. Ng5 {[%clk 0:04:35.4]}
8... Be7 {[%clk 0:04:24]} 9. Nh3 {[%clk 0:04:31.9]} 9... Qxb2 {[%clk 0:04:20.5]}
10. Rb1 {[%clk 0:04:29.2]} 10... Qxa2 {[%clk 0:04:15.5]} 11. Rxb7 {[%clk
0:04:27.4]} 11... Bxc2 {[%clk 0:04:09.3]} 12. Qc1 {[%clk 0:04:22.8]} 12... Nf6
{[%clk 0:04:01.4]} 13. Be2 {[%clk 0:04:16.1]} 13... O-O {[%clk 0:03:56.8]} 14.
Rb2 {[%clk 0:04:13.6]} 14... Ba3 {[%clk 0:03:43.9]} 15. Rxa2 {[%clk 0:04:09.9]}
15... Bxc1 {[%clk 0:03:42.1]} 16. Bxc1 {[%clk 0:04:09.4]} 16... Bb3 {[%clk
0:03:39.5]} 17. Rb2 {[%clk 0:04:07]} 17... Be6 {[%clk 0:03:33.8]} 18. Ng5 {[%clk
0:04:03.5]} 18... Na6 {[%clk 0:03:30.5]} 19. Bxa6 {[%clk 0:04:00.5]} 19... Rab8
{[%clk 0:03:16.6]} 20. Rxb8 {[%clk 0:03:57.4]} 20... Rxb8 {[%clk 0:03:14.5]} 21.
O-O {[%clk 0:03:56.2]} 21... Nd5 {[%clk 0:03:00.9]} 22. Nxe6 {[%clk 0:03:54.6]}
22... fxe6 {[%clk 0:02:57.4]} 23. Ne4 {[%clk 0:03:53.3]} 23... Rb6 {[%clk
0:02:55]} 24. Be2 {[%clk 0:03:48.6]} 24... Nf4 {[%clk 0:02:47]} 25. Bxf4 {[%clk
0:03:46.1]} 25... exf4 {[%clk 0:02:43.5]} 26. Bc4 {[%clk 0:03:44.9]} 26... Rb4
{[%clk 0:02:41.1]} 27. Bxe6+ {[%clk 0:03:42.9]} 27... Kf8 {[%clk 0:02:37.5]} 28.
Nc5 {[%clk 0:03:39.9]} 28... Rb5 {[%clk 0:02:26.3]} 29. Nd7+ {[%clk 0:03:37.3]}
29... Ke7 {[%clk 0:02:23.5]} 30. Bh3 {[%clk 0:03:36]} 30... Rg5 {[%clk
0:02:09.9]} 31. Re1+ {[%clk 0:03:32.5]} 31... Kd8 {[%clk 0:02:06.4]} 32. Ne5
{[%clk 0:03:28.1]} 32... Kc7 {[%clk 0:01:50.7]} 33. Nf7 {[%clk 0:03:25.5]} 33...
Rg6 {[%clk 0:01:46.1]} 34. Re7+ {[%clk 0:03:21.2]} 34... Kb6 {[%clk 0:01:42.4]}
35. Ne5 {[%clk 0:03:19.6]} 35... Rg5 {[%clk 0:01:37]} 36. Re6 {[%clk 0:03:12.9]}
36... a5 {[%clk 0:01:15.9]} 37. Rxc6+ {[%clk 0:03:10.2]} 37... Kb5 {[%clk
0:01:12.7]} 38. Re6 {[%clk 0:03:08]} 38... a4 {[%clk 0:00:59]} 39. Nf3 {[%clk
0:03:04.3]} 39... Rc5 {[%clk 0:00:54]} 40. Re5 {[%clk 0:03:01.8]} 40... Rxe5
{[%clk 0:00:50.3]} 41. Nxe5 {[%clk 0:03:01]} 41... a3 {[%clk 0:00:49.3]} 42. Be6
{[%clk 0:02:59.2]} 42... Kc5 {[%clk 0:00:45.8]} 43. Nd3+ {[%clk 0:02:57.4]}
43... Kd4 {[%clk 0:00:42.2]} 44. Nxf4 {[%clk 0:02:55.5]} 44... Ke5 {[%clk
0:00:40.1]} 45. g3 {[%clk 0:02:53.3]} 45... g5 {[%clk 0:00:36.6]} 46. Ba2 {[%clk
0:02:41.9]} 46... gxf4 {[%clk 0:00:32.1]} 47. g4 {[%clk 0:02:39.5]} 47... Kf6
{[%clk 0:00:27.3]} 48. Kg2 {[%clk 0:02:38.4]} 48... Kg5 {[%clk 0:00:25.4]} 49.
Kf3 {[%clk 0:02:37.3]} 49... h5 {[%clk 0:00:15.4]} 50. gxh5 {[%clk 0:02:34.9]}
50... Kxh5 {[%clk 0:00:14.6]} 51. Kxf4 {[%clk 0:02:34.1]} 51... Kh4 {[%clk
0:00:14]} 52. Ke5 {[%clk 0:02:30.1]} 52... Kh3 {[%clk 0:00:13.4]} 53. f4 {[%clk
0:02:29.2]} 53... Kxh2 {[%clk 0:00:13]} 54. f5 {[%clk 0:02:28.7]} 54... Kh3
{[%clk 0:00:10.5]} 55. f6 {[%clk 0:02:27.9]} 55... Kg4 {[%clk 0:00:10.4]} 56. f7
{[%clk 0:02:26.7]} 56... Kg5 {[%clk 0:00:10.3]} 57. f8=Q {[%clk 0:02:25.1]}
57... Kg6 {[%clk 0:00:10.2]} 58. Ke4 {[%clk 0:02:22.1]} 58... Kg5 {[%clk
0:00:08]} 59. Qf7 {[%clk 0:02:20.3]} 59... Kh4 {[%clk 0:00:05.3]} 60. Qg7 {[%clk
0:02:19.4]} 60... Kh3 {[%clk 0:00:03.8]} 61. Kf3 {[%clk 0:02:18.1]} 61... Kh4
{[%clk 0:00:02.6]} 62. Qg4# {[%clk 0:02:16.7]} 1-0

[Event "Live Chess"]
[Site "Chess.com"]
[Date "2024.06.01"]
[Round "-"]
[White "Pedrada88"]
[Black "E2E4colchester"]
[Result "1-0"]
[WhiteElo "2552"]
[BlackElo "989"]
[TimeControl "300"]
[EndTime "9:34:06 PDT"]
[Termination "Pedrada88 won by checkmate"]

1. d4 {[%clk 0:04:57.5]} 1... d5 {[%clk 0:04:53.9]} 2. Nf3 {[%clk 0:04:55.6]}
2... Nc6 {[%clk 0:04:52]} 3. c4 {[%clk 0:04:54.8]} 3... dxc4 {[%clk 0:04:48.6]}
4. d5 {[%clk 0:04:54.1]} 4... Nb8 {[%clk 0:04:24]} 5. e4 {[%clk 0:04:52.8]} 5...
Bg4 {[%clk 0:04:16.9]} 6. Bxc4 {[%clk 0:04:49.6]} 6... c6 {[%clk 0:04:09.9]} 7.
Nc3 {[%clk 0:04:48.2]} 7... Nf6 {[%clk 0:03:58.2]} 8. O-O {[%clk 0:04:43.9]}
8... cxd5 {[%clk 0:03:54.1]} 9. exd5 {[%clk 0:04:42.3]} 9... Nbd7 {[%clk
0:03:47.2]} 10. Re1 {[%clk 0:04:41.1]} 10... g6 {[%clk 0:03:43.3]} 11. h3 {[%clk
0:04:39.7]} 11... Bxf3 {[%clk 0:03:37.7]} 12. Qxf3 {[%clk 0:04:39.6]} 12... Bg7
{[%clk 0:03:36.9]} 13. d6 {[%clk 0:04:38.9]} 13... e6 {[%clk 0:03:33]} 14. Bxe6
{[%clk 0:04:33.7]} 14... fxe6 {[%clk 0:03:29.8]} 15. Rxe6+ {[%clk 0:04:33.6]}
15... Kf8 {[%clk 0:03:23.7]} 16. Bg5 {[%clk 0:04:32.2]} 16... h6 {[%clk
0:03:20]} 17. Bd2 {[%clk 0:04:24.5]} 17... Rc8 {[%clk 0:03:13]} 18. Rae1 {[%clk
0:04:23]} 18... Kg8 {[%clk 0:03:01.9]} 19. Re7 {[%clk 0:04:18.9]} 19... Kh7
{[%clk 0:02:58.9]} 20. Be3 {[%clk 0:04:07.2]} 20... Rf8 {[%clk 0:02:54.7]} 21.
Bd4 {[%clk 0:04:05.1]} 21... Rc6 {[%clk 0:02:29]} 22. Ne4 {[%clk 0:03:59.8]}
22... Nxe4 {[%clk 0:02:17.3]} 23. Rxg7+ {[%clk 0:03:57.9]} 23... Kh8 {[%clk
0:02:10]} 24. Qxe4 {[%clk 0:03:52.8]} 24... Nf6 {[%clk 0:01:56.3]} 25. Qxg6
{[%clk 0:03:51.2]} 25... Rxd6 {[%clk 0:01:41.3]} 26. Rh7# {[%clk 0:03:50.2]} 1-0

[Event "Live Chess"]
[Site "Chess.com"]
[Date "2024.06.01"]
[Round "-"]
[White "Isambard_Thomas"]
[Black "Colm_Buckley"]
[Result "1-0"]
[WhiteElo "2105"]
[BlackElo "1811"]
[TimeControl "300"]
[EndTime "9:34:16 PDT"]
[Termination "Isambard_Thomas won by resignation"]

1. d4 {[%clk 0:04:59]} 1... e6 {[%clk 0:04:57.3]} 2. Nf3 {[%clk 0:04:58.5]} 2...
Nf6 {[%clk 0:04:55.9]} 3. Bg5 {[%clk 0:04:58.1]} 3... c5 {[%clk 0:04:54.5]} 4.
e3 {[%clk 0:04:57.5]} 4... b6 {[%clk 0:04:51.9]} 5. c3 {[%clk 0:04:56.9]} 5...
Bb7 {[%clk 0:04:50.2]} 6. Bd3 {[%clk 0:04:55.9]} 6... Nc6 {[%clk 0:04:48.3]} 7.
Nbd2 {[%clk 0:04:55.4]} 7... h6 {[%clk 0:04:44.9]} 8. Bh4 {[%clk 0:04:53.2]}
8... Be7 {[%clk 0:04:41.2]} 9. Qe2 {[%clk 0:04:52.2]} 9... O-O {[%clk
0:04:37.1]} 10. O-O-O {[%clk 0:04:39.8]} 10... cxd4 {[%clk 0:04:35.1]} 11. exd4
{[%clk 0:04:38.7]} 11... Rc8 {[%clk 0:04:26.1]} 12. Kb1 {[%clk 0:04:37.1]} 12...
a5 {[%clk 0:04:20.2]} 13. Bc2 {[%clk 0:04:33.6]} 13... b5 {[%clk 0:04:12.4]} 14.
Bxf6 {[%clk 0:04:31.4]} 14... Bxf6 {[%clk 0:04:10.8]} 15. g4 {[%clk 0:04:30.4]}
15... b4 {[%clk 0:04:06.9]} 16. c4 {[%clk 0:03:44.4]} 16... g6 {[%clk
0:03:34.4]} 17. h4 {[%clk 0:03:42.3]} 17... Nxd4 {[%clk 0:03:32.2]} 18. Nxd4
{[%clk 0:03:37.4]} 18... Bxd4 {[%clk 0:03:31.3]} 19. Rh3 {[%clk 0:03:24.6]}
19... d5 {[%clk 0:03:14.4]} 20. h5 {[%clk 0:03:17.8]} 20... g5 {[%clk
0:02:51.8]} 21. Qd3 {[%clk 0:03:12.8]} 21... f5 {[%clk 0:02:46.5]} 22. Qxd4
{[%clk 0:03:10.2]} 22... dxc4 {[%clk 0:02:43.2]} 23. Qe5 {[%clk 0:03:00.1]}
23... b3 {[%clk 0:02:14.1]} 24. Qxe6+ {[%clk 0:02:54.1]} 24... Rf7 {[%clk
0:02:04.1]} 25. Bxf5 {[%clk 0:02:48.5]} 25... bxa2+ {[%clk 0:01:54.4]} 26. Kxa2
{[%clk 0:02:47.6]} 26... c3 {[%clk 0:01:48.9]} 27. Qg6+ {[%clk 0:02:30.7]} 27...
Rg7 {[%clk 0:01:42.4]} 28. Be6+ {[%clk 0:02:28.7]} 28... Kh8 {[%clk 0:01:33]}
29. Qxh6+ {[%clk 0:02:27.5]} 29... Rh7 {[%clk 0:01:32.3]} 30. Qg6 {[%clk
0:02:16.4]} 30... cxd2 {[%clk 0:01:19.7]} 31. Rd3 {[%clk 0:02:13.2]} 31... Qf8
{[%clk 0:00:53.5]} 32. R1xd2 {[%clk 0:02:05.8]} 32... Rh6 {[%clk 0:00:43.6]} 33.
Bxc8 {[%clk 0:01:32.2]} 33... Rxg6 {[%clk 0:00:28.3]} 34. Rd8 {[%clk 0:01:30.6]}
34... Qxd8 {[%clk 0:00:14.6]} 35. Rxd8+ {[%clk 0:01:29.1]} 35... Rg8 {[%clk
0:00:11.8]} 36. Rxg8+ {[%clk 0:01:26.5]} 36... Kxg8 {[%clk 0:00:10.4]} 37. Bxb7
{[%clk 0:01:26.4]} 1-0

[Event "Live Chess"]
[Site "Chess.com"]
[Date "2024.06.01"]
[Round "-"]
[White "TigerTank70"]
[Black "Grieve72"]
[Result "1-0"]
[WhiteElo "2195"]
[BlackElo "2636"]
[TimeControl "300"]
[EndTime "9:34:22 PDT"]
[Termination "TigerTank70 won by checkmate"]

1. e4 {[%clk 0:04:57.6]} 1... c5 {[%clk 0:04:59.6]} 2. d4 {[%clk 0:04:56]} 2...
cxd4 {[%clk 0:04:58.8]} 3. c3 {[%clk 0:04:55.2]} 3... Nf6 {[%clk 0:04:58.5]} 4.
e5 {[%clk 0:04:53.8]} 4... Nd5 {[%clk 0:04:58.2]} 5. Bc4 {[%clk 0:04:53.1]} 5...
e6 {[%clk 0:04:57.6]} 6. Nf3 {[%clk 0:04:47.4]} 6... d6 {[%clk 0:04:56.8]} 7.
cxd4 {[%clk 0:04:43.5]} 7... Be7 {[%clk 0:04:56]} 8. O-O {[%clk 0:04:41.5]} 8...
O-O {[%clk 0:04:55.5]} 9. Nc3 {[%clk 0:04:39.9]} 9... dxe5 {[%clk 0:04:53.5]}
10. Nxe5 {[%clk 0:04:38.1]} 10... Nc6 {[%clk 0:04:53.2]} 11. Nxc6 {[%clk
0:04:29.7]} 11... bxc6 {[%clk 0:04:53.1]} 12. Ne4 {[%clk 0:04:08.3]} 12... a5
{[%clk 0:04:51.6]} 13. Qh5 {[%clk 0:03:51.3]} 13... Qb6 {[%clk 0:04:45.4]} 14.
Rd1 {[%clk 0:03:45.5]} 14... a4 {[%clk 0:04:42.2]} 15. Bg5 {[%clk 0:03:42.3]}
15... Bxg5 {[%clk 0:04:39.1]} 16. Nxg5 {[%clk 0:03:41]} 16... h6 {[%clk
0:04:38.7]} 17. Ne4 {[%clk 0:03:35.7]} 17... Rd8 {[%clk 0:04:37.2]} 18. Rd3
{[%clk 0:03:20.8]} 18... Qxb2 {[%clk 0:04:30.7]} 19. Rad1 {[%clk 0:03:01]} 19...
Nf4 {[%clk 0:04:29.9]} 20. Qh4 {[%clk 0:02:54.7]} 20... g5 {[%clk 0:04:16.1]}
21. Qxh6 {[%clk 0:02:53.4]} 21... f5 {[%clk 0:03:54.3]} 22. Nxg5 {[%clk
0:02:31.5]} 22... Ra7 {[%clk 0:03:53]} 23. Rg3 {[%clk 0:02:21.7]} 23... Rg7
{[%clk 0:03:35]} 24. Nxe6 {[%clk 0:02:18.3]} 24... Rxg3 {[%clk 0:03:29.8]} 25.
Nxd8+ {[%clk 0:02:08.8]} 25... Nd5 {[%clk 0:03:28]} 26. Bxd5+ {[%clk 0:02:02.7]}
26... cxd5 {[%clk 0:03:27]} 27. hxg3 {[%clk 0:01:59.6]} 27... Qxa2 {[%clk
0:03:24.3]} 28. Qg6+ {[%clk 0:01:57.4]} 28... Kf8 {[%clk 0:03:22.6]} 29. Qf7#
{[%clk 0:01:56.3]} 1-0

[Event "Live Chess"]
[Site "Chess.com"]
[Date "2024.06.01"]
[Round "-"]
[White "gmnorfolk"]
[Black "PureDashingOctopus"]
[Result "0-1"]
[WhiteElo "2109"]
[BlackElo "2229"]
[TimeControl "300"]
[EndTime "9:34:31 PDT"]
[Termination "PureDashingOctopus won by resignation"]

1. c4 {[%clk 0:04:56.8]} 1... c5 {[%clk 0:04:58.8]} 2. Nc3 {[%clk 0:04:55.3]}
2... Nc6 {[%clk 0:04:58]} 3. Nf3 {[%clk 0:04:54.1]} 3... g6 {[%clk 0:04:55.7]}
4. e3 {[%clk 0:04:52.8]} 4... Bg7 {[%clk 0:04:54.4]} 5. d4 {[%clk 0:04:52.7]}
5... cxd4 {[%clk 0:04:53.3]} 6. exd4 {[%clk 0:04:51.4]} 6... d6 {[%clk
0:04:52.5]} 7. d5 {[%clk 0:04:50.8]} 7... Nb8 {[%clk 0:04:47.3]} 8. Be2 {[%clk
0:04:45.6]} 8... Nf6 {[%clk 0:04:46.7]} 9. O-O {[%clk 0:04:45.1]} 9... O-O
{[%clk 0:04:46]} 10. Be3 {[%clk 0:04:44.1]} 10... Bg4 {[%clk 0:04:43.3]} 11. Nd4
{[%clk 0:04:40.7]} 11... Bxe2 {[%clk 0:04:40.2]} 12. Qxe2 {[%clk 0:04:40.6]}
12... Nbd7 {[%clk 0:04:38.8]} 13. Rfe1 {[%clk 0:04:37.1]} 13... Re8 {[%clk
0:04:33.7]} 14. Rad1 {[%clk 0:04:34.4]} 14... a6 {[%clk 0:04:28.9]} 15. h3
{[%clk 0:04:33]} 15... Rc8 {[%clk 0:04:27.3]} 16. b3 {[%clk 0:04:23.2]} 16...
Nc5 {[%clk 0:04:06.1]} 17. f3 {[%clk 0:04:09.8]} 17... Qa5 {[%clk 0:03:46.8]}
18. Qd2 {[%clk 0:04:04.5]} 18... Ncd7 {[%clk 0:03:33.3]} 19. Na4 {[%clk
0:03:55.2]} 19... Qxd2 {[%clk 0:03:29.3]} 20. Rxd2 {[%clk 0:03:55.1]} 20... Nc5
{[%clk 0:03:06.5]} 21. Nb6 {[%clk 0:03:50.7]} 21... Rcd8 {[%clk 0:02:56.1]} 22.
b4 {[%clk 0:03:38.6]} 22... Ncd7 {[%clk 0:02:52.2]} 23. Nb3 {[%clk 0:03:33.8]}
23... Nxb6 {[%clk 0:02:48]} 24. Bxb6 {[%clk 0:03:32.7]} 24... Rc8 {[%clk
0:02:47.7]} 25. c5 {[%clk 0:03:30.8]} 25... Nd7 {[%clk 0:02:43]} 26. Ba7 {[%clk
0:03:12.9]} 26... Bc3 {[%clk 0:02:37.5]} 27. Ree2 {[%clk 0:03:11.3]} 27... Bxd2
{[%clk 0:02:35.6]} 28. Rxd2 {[%clk 0:03:11.1]} 28... Ra8 {[%clk 0:02:34.6]} 29.
Bb6 {[%clk 0:02:54.6]} 29... Nxb6 {[%clk 0:02:29.8]} 30. cxb6 {[%clk 0:02:53.5]}
30... Rac8 {[%clk 0:02:24.2]} 31. Na5 {[%clk 0:02:52.5]} 31... Rb8 {[%clk
0:02:02.5]} 32. Rc2 {[%clk 0:02:50.5]} 32... Rec8 {[%clk 0:02:00.6]} 33. Re2
{[%clk 0:02:22.7]} 33... Kf8 {[%clk 0:01:59]} 34. a4 {[%clk 0:02:20.5]} 34...
Rc3 {[%clk 0:01:53.6]} 35. Rb2 {[%clk 0:02:13.8]} 35... Ra3 {[%clk 0:01:19.7]}
36. Nc6 {[%clk 0:01:44.2]} 36... bxc6 {[%clk 0:01:15.7]} 37. dxc6 {[%clk
0:01:39.9]} 37... Rxb6 {[%clk 0:01:14.8]} 38. Rc2 {[%clk 0:01:35.3]} 38... Rb8
{[%clk 0:01:07.8]} 39. c7 {[%clk 0:01:25]} 39... Rc8 {[%clk 0:01:06]} 40. b5
{[%clk 0:01:21.6]} 40... axb5 {[%clk 0:01:03.3]} 41. axb5 {[%clk 0:01:20.9]}
41... Rb3 {[%clk 0:01:02.4]} 0-1

[Event "Live Chess"]
[Site "Chess.com"]
[Date "2024.06.01"]
[Round "-"]
[White "MaximKhimchenko"]
[Black "Mangoalo"]
[Result "1-0"]
[WhiteElo "1778"]
[BlackElo "988"]
[TimeControl "300"]
[EndTime "9:34:40 PDT"]
[Termination "MaximKhimchenko won by resignation"]

1. e4 {[%clk 0:04:57.8]} 1... d5 {[%clk 0:04:57.9]} 2. Nf3 {[%clk 0:04:57.7]}
2... dxe4 {[%clk 0:04:56.4]} 3. Ng5 {[%clk 0:04:57.2]} 3... Nf6 {[%clk
0:04:53.8]} 4. d3 {[%clk 0:04:56.4]} 4... exd3 {[%clk 0:04:52.8]} 5. Bxd3 {[%clk
0:04:56.3]} 5... Nc6 {[%clk 0:04:50.8]} 6. O-O {[%clk 0:04:54.5]} 6... h6 {[%clk
0:04:49.8]} 7. Nf3 {[%clk 0:04:53.4]} 7... Bg4 {[%clk 0:04:47.1]} 8. Nc3 {[%clk
0:04:52.3]} 8... e5 {[%clk 0:04:45.6]} 9. h3 {[%clk 0:04:48.7]} 9... Bxf3 {[%clk
0:04:43.8]} 10. Qxf3 {[%clk 0:04:47]} 10... Bb4 {[%clk 0:04:42.4]} 11. Ne4
{[%clk 0:04:43.2]} 11... g6 {[%clk 0:04:40.2]} 12. Nxf6+ {[%clk 0:04:41.6]} 1-0